bitfinex/quotes_BTCUSD_20250615
["timestamp","ask_amount","ask_price","bid_price","bid_amount"]
[1749969351192,0.00047123,105620.0,105610.0,0.88693031]
[1749969352056,0.00547123,105620.0,105610.0,0.88693029]
[1749969352520,0.00636728,105620.0,105610.0,0.96530651]
[1749969352968,0.00636728,105620.0,105610.0,0.98307982]
[1749969353187,0.00636728,105620.0,105610.0,0.96530651]
[1749969353412,0.00636728,105620.0,105610.0,0.98307982]
[1749969353862,0.00636728,105620.0,105610.0,0.96530651]
[1749969354291,0.00636728,105620.0,105610.0,0.86915729]
[1749969354765,0.00636728,105620.0,105610.0,0.8869306]
[1749969354974,0.00636728,105620.0,105610.0,0.88693062]
[1749969355801,0.00636728,105620.0,105610.0,0.86915729]
[1749969356021,0.00636728,105620.0,105610.0,0.88693063]
[1749969356241,0.00636728,105620.0,105610.0,0.86915729]
[1749969357161,0.00636728,105620.0,105610.0,0.84204874]
[1749969357399,0.00636728,105620.0,105610.0,0.88364874]
[1749969360415,0.00636728,105620.0,105610.0,0.86903729]
[1749969360624,0.00636728,105620.0,105610.0,0.27570312]
[1749969360833,0.01583446,105620.0,105610.0,0.27570312]
[1749969361044,0.02530173,105620.0,105610.0,0.44820312]
[1749969361544,0.04423708,105620.0,105610.0,0.27180312]
[1749969361762,1.06897663,105620.0,105610.0,0.388649]
[1749969361972,1.09146234,105620.0,105610.0,0.19899771]
[1749969362188,0.69668817,105620.0,105610.0,0.25006633]
[1749969362411,0.69668817,105620.0,105610.0,0.19899771]
[1749969362845,0.71958817,105620.0,105610.0,0.25006624]
[1749969363470,0.71958817,105620.0,105610.0,0.25006633]
[1749969363685,0.71958817,105620.0,105610.0,0.25953486]
[1749969363897,1.09542699,105620.0,105610.0,0.231129]
[1749969364097,1.09543561,105620.0,105610.0,0.000153]
[1749969364320,1.09543561,105620.0,105610.0,0.24059771]
[1749969364987,1.09543561,105620.0,105610.0,0.041753]
[1749969365210,1.09543561,105620.0,105610.0,0.0512218]
[1749969365977,1.09543561,105620.0,105610.0,0.041753]
[1749969366421,0.70066144,105620.0,105610.0,0.041753]
[1749969366658,1.09543561,105620.0,105610.0,0.041753]
[1749969367524,1.07253561,105620.0,105610.0,0.041753]
[1749969367755,1.07253561,105620.0,105610.0,0.05952875]
[1749969368174,1.07253561,105620.0,105610.0,0.041753]
[1749969368619,1.07253561,105620.0,105610.0,0.06899755]
[1749969368871,0.68435999,105620.0,105610.0,0.0512218]
[1749969369092,0.66105999,105620.0,105610.0,0.26784255]
[1749969369286,0.67776144,105620.0,105610.0,0.25837383]
[1749969369559,0.68722925,105620.0,105610.0,0.25006642]
[1749969369784,0.44260904,105620.0,105610.0,0.32987838]
[1749969369999,0.46154349,105620.0,105610.0,0.32987818]
[1749969370192,0.46154349,105620.0,105610.0,0.31210303]
[1749969370444,0.47101103,105620.0,105610.0,0.32987776]
[1749969370666,0.46154349,105620.0,105610.0,0.32987776]
[1749969370885,0.46154349,105620.0,105610.0,0.31210303]
[1749969371114,0.44260904,105620.0,105610.0,0.42602711]
[1749969371327,0.34636728,105620.0,105610.0,0.72465198]
[1749969371582,0.34636728,105620.0,105610.0,0.7246518]
[1749969371809,0.00636728,105620.0,105610.0,0.72465137]
[1749969372040,0.00636728,105620.0,105610.0,0.72465086]
[1749969372256,0.00636728,105620.0,105610.0,0.72465084]
[1749969372478,0.00636728,105620.0,105610.0,0.32987686]
[1749969372722,0.00636728,105620.0,105610.0,0.32987694]
[1749969373389,0.00636728,105620.0,105610.0,0.32986725]
[1749969373825,0.00636728,105620.0,105610.0,0.28826746]
[1749969374058,0.00636728,105620.0,105610.0,0.46934303]
[1749969374273,0.00636728,105620.0,105610.0,0.48710742]
[1749969374499,0.00636728,105620.0,105610.0,0.48710728]
[1749969374694,0.00636728,105620.0,105610.0,0.48710714]
[1749969374934,0.00636728,105620.0,105610.0,0.46934303]
[1749969375172,0.00636728,105620.0,105610.0,0.48710723]
[1749969375804,0.00636728,105620.0,105610.0,0.46934303]
[1749969376023,0.00636728,105620.0,105610.0,0.48710723]
[1749969376241,0.01583437,105620.0,105610.0,0.48710723]
[1749969376385,0.01583437,105620.0,105610.0,0.46934303]
[1749969376602,0.00636728,105620.0,105610.0,0.48710723]
[1749969377044,0.00636728,105620.0,105610.0,0.48710724]
[1749969377256,0.01583437,105620.0,105610.0,0.46934303]
[1749969377453,0.01583446,105620.0,105610.0,0.46934303]
[1749969377710,0.00636728,105620.0,105610.0,0.48722732]
[1749969378149,0.00636728,105620.0,105610.0,0.56561225]
[1749969378369,0.00636728,105620.0,105610.0,0.8820015]
[1749969378586,0.00636728,105620.0,105610.0,0.8642372]
[1749969378808,0.00636728,105620.0,105610.0,0.88200042]
[1749969379025,0.00636728,105620.0,105610.0,0.88199981]
[1749969379233,0.00636728,105620.0,105610.0,0.88199983]
[1749969379435,0.00636728,105620.0,105610.0,0.97814916]
[1749969379644,0.00636728,105620.0,105610.0,0.97814934]
[1749969379868,0.00636728,105620.0,105610.0,0.96038642]
[1749969380536,0.00636728,105620.0,105610.0,0.97814932]
[1749969381180,0.00636728,105620.0,105610.0,0.97814984]
[1749969381383,0.00636728,105620.0,105610.0,0.97814985]
[1749969381889,0.00636728,105620.0,105610.0,0.97814984]
[1749969382121,0.00636728,105620.0,105610.0,0.96038642]
[1749969382529,0.00636728,105620.0,105610.0,0.97814945]
[1749969382737,0.00636728,105620.0,105610.0,0.96038642]
[1749969382941,0.00636728,105620.0,105610.0,0.88184024]
[1749969383141,0.00636728,105620.0,105610.0,0.8818406]
[1749969383351,0.00636728,105620.0,105610.0,0.88184062]
[1749969383979,0.00636728,105620.0,105610.0,0.48706654]
[1749969384179,0.00636728,105620.0,105610.0,0.4870665]
[1749969384393,0.00636728,105620.0,105610.0,0.46930303]
[1749969384601,0.00636728,105620.0,105610.0,0.48706678]
[1749969384802,0.00636728,105620.0,105610.0,0.46930303]
[1749969384979,0.00636728,105620.0,105610.0,0.46918303]
[1749969385182,0.00636728,105620.0,105610.0,0.48694684]
[1749969385407,0.00636728,105620.0,105610.0,0.48694689]
[1749969385622,0.00636728,105620.0,105610.0,0.46918303]
[1749969387082,0.00636728,105620.0,105610.0,0.46906303]
[1749969389253,0.00636728,105620.0,105610.0,0.27050303]
[1749969389464,0.00636728,105620.0,105610.0,0.44738303]
[1749969389690,0.00636728,105620.0,105610.0,0.46548303]
[1749969390344,0.01583446,105620.0,105610.0,0.26700303]
[1749969390574,0.00636728,105620.0,105610.0,0.46548303]
[1749969391483,0.00636728,105620.0,105610.0,0.56163225]
[1749969391703,0.00636728,105620.0,105610.0,0.46548303]
[1749969392375,0.00636728,105620.0,105610.0,0.26700303]
[1749969392589,0.01583446,105620.0,105610.0,0.46540303]
[1749969392803,0.00636728,105620.0,105610.0,0.46540303]
[1749969393461,0.01583446,105620.0,105610.0,0.24890303]
[1749969393682,0.02530182,105620.0,105610.0,0.44722303]
[1749969394320,0.01583446,105620.0,105610.0,0.44722303]
[1749969394539,0.02530191,105620.0,105610.0,0.44722303]
[1749969394752,0.02530182,105620.0,105610.0,0.44722303]
[1749969396740,0.04440182,105620.0,105610.0,0.42512303]
[1749969397014,0.04440182,105620.0,105610.0,0.22740303]
[1749969397231,0.05386936,105620.0,105610.0,0.42512303]
[1749969397440,0.05386927,105620.0,105610.0,0.42512303]
[1749969397657,0.03476927,105620.0,105610.0,0.42512303]
[1749969397876,0.05386927,105620.0,105610.0,0.42512303]
[1749969398531,0.03476927,105620.0,105610.0,0.42512303]
[1749969398749,0.23359497,105620.0,105610.0,0.21793486]
[1749969398968,0.26216287,105620.0,105610.0,0.43455147]
[1749969399423,0.0728048,105620.0,105610.0,0.43455147]
[1749969399657,0.25269569,105620.0,105610.0,0.41557495]
[1749969399882,0.61159569,105620.0,105610.0,0.21793495]
[1749969400104,0.61159569,105620.0,105610.0,0.22740339]
[1749969400321,0.62463227,105620.0,105610.0,0.41553495]
[1749969400536,1.01940644,105620.0,105610.0,0.41553495]
[1749969401302,1.01940644,105620.0,105610.0,0.42500339]
[1749969401950,1.01870644,105620.0,105610.0,0.41553495]
[1749969402151,1.00923899,105620.0,105610.0,0.0096218]
[1749969402281,0.99977136,105620.0,105610.0,0.21669051]
[1749969403127,0.99030346,105620.0,105610.0,0.041313]
[1749969403351,1.09314381,105620.0,105610.0,0.041313]
[1749969403580,1.09314372,105620.0,105610.0,0.041313]
[1749969403843,1.08654522,105620.0,105610.0,0.041313]
[1749969404054,1.09314367,105620.0,105610.0,0.041313]
[1749969404277,1.09314368,105620.0,105610.0,0.041313]
[1749969404575,1.08654522,105620.0,105610.0,0.000153]
[1749969405012,1.10261111,105620.0,105610.0,0.189529]
[1749969405237,0.01296581,105620.0,105610.0,0.66264386]
[1749969405457,0.01296581,105620.0,105610.0,0.66027693]
[1749969405676,0.01296581,105620.0,105610.0,0.77105954]
[1749969406122,0.01296581,105620.0,105610.0,0.37628537]
[1749969406353,0.01296581,105620.0,105610.0,0.84832219]
[1749969406593,0.01296581,105620.0,105610.0,0.86609425]
[1749969406811,0.01296581,105620.0,105610.0,0.86609355]
[1749969407021,0.01296581,105620.0,105610.0,0.86609212]
[1749969407259,0.01296581,105620.0,105610.0,0.86609204]
[1749969407477,0.01196581,105620.0,105610.0,0.84832219]
[1749969407914,0.00796581,105620.0,105610.0,0.8660921]
[1749969408386,0.01196581,105620.0,105610.0,0.8670921]
[1749969408590,0.01196581,105620.0,105610.0,0.84832219]
[1749969408801,0.01296581,105620.0,105610.0,0.86709172]
[1749969409008,0.01196581,105620.0,105610.0,0.84932219]
[1749969409221,0.01296581,105620.0,105610.0,0.84932219]
[1749969409438,0.01296581,105620.0,105610.0,0.86709167]
[1749969409668,0.01296581,105620.0,105610.0,0.86709172]
[1749969409874,0.01296581,105620.0,105610.0,0.86709185]
[1749969410084,0.01296581,105620.0,105610.0,0.86709195]
[1749969410311,0.01296581,105620.0,105610.0,0.84932219]
[1749969410534,0.01296581,105620.0,105610.0,0.86709197]
[1749969410751,0.01296581,105620.0,105610.0,0.86709153]
[1749969410990,0.01296581,105620.0,105610.0,0.84932219]
[1749969411209,0.01296581,105620.0,105610.0,0.86709151]
[1749969411426,0.01296581,105620.0,105610.0,0.84932219]
[1749969411643,0.01296581,105620.0,105610.0,0.8670914]
[1749969411852,0.01296581,105620.0,105610.0,0.84932219]
[1749969412354,0.01296581,105620.0,105610.0,0.87777919]
[1749969413252,0.01296581,105620.0,105610.0,1.26777919]
[1749969413495,0.01296581,105620.0,105610.0,1.3245371]
[1749969414137,0.00796581,105620.0,105610.0,1.3235371]
[1749969414348,0.00796581,105620.0,105610.0,1.3265371]
[1749969414562,0.00896581,105620.0,105610.0,1.26977919]
[1749969414991,0.00796581,105620.0,105610.0,1.26977919]
[1749969415206,0.00896581,105620.0,105610.0,1.27277919]
[1749969416123,0.00896581,105620.0,105610.0,1.29054752]
[1749969416551,0.00896581,105620.0,105610.0,1.29054751]
[1749969416782,0.00896581,105620.0,105610.0,1.29054746]
[1749969417206,0.00896581,105620.0,105610.0,1.29043302]
[1749969417397,0.00896581,105620.0,105610.0,1.29043301]
[1749969417610,0.00896581,105620.0,105610.0,1.34719078]
[1749969417817,0.02089769,105630.0,105620.0,0.65890154]
[1749969418027,0.02089769,105630.0,105620.0,1.45898768]
[1749969418243,0.02089769,105630.0,105620.0,1.47663874]
[1749969418446,0.02089769,105630.0,105620.0,1.45898768]
[1749969418677,0.02089769,105630.0,105620.0,1.47663888]
[1749969419097,0.02189769,105630.0,105620.0,1.50210768]
[1749969419312,0.02189769,105630.0,105620.0,1.51975907]
[1749969419508,0.02389769,105630.0,105620.0,1.5207591]
[1749969419717,0.02289769,105630.0,105620.0,1.5187591]
[1749969419863,0.02289769,105630.0,105620.0,1.51875908]
[1749969420092,0.02289769,105630.0,105620.0,1.51875905]
[1749969420489,0.02289769,105630.0,105620.0,1.51875908]
[1749969420703,0.02089769,105630.0,105620.0,1.51775907]
[1749969420940,0.02289769,105630.0,105620.0,1.52275908]
[1749969421168,0.02289769,105630.0,105620.0,1.50510768]
[1749969421666,0.02289769,105630.0,105620.0,1.60481768]
[1749969422093,0.02289769,105630.0,105620.0,1.54821669]
[1749969422759,0.02289769,105630.0,105620.0,1.35077669]
[1749969422989,0.02289769,105630.0,105620.0,1.54813669]
[1749969425029,0.00859769,105630.0,105620.0,1.54813669]
[1749969426134,0.00859769,105630.0,105620.0,1.57658669]
[1749969426784,0.00859769,105630.0,105620.0,1.47643669]
[1749969427510,0.00859769,105630.0,105620.0,1.47639669]
[1749969430119,0.00859769,105630.0,105620.0,1.47631669]
[1749969430319,0.00859769,105630.0,105620.0,1.42631669]
[1749969430531,0.00859769,105630.0,105620.0,1.47631669]
[1749969431611,0.00859769,105630.0,105620.0,1.57605669]
[1749969432460,0.00859769,105630.0,105620.0,1.84893669]
[1749969433377,0.00859769,105630.0,105620.0,1.74919669]
[1749969433606,0.00859769,105630.0,105620.0,1.80579768]
[1749969442662,0.00859769,105630.0,105620.0,1.74919669]
[1749969442918,0.00859769,105630.0,105620.0,1.80595923]
[1749969443325,0.00859769,105630.0,105620.0,1.80596073]
[1749969443532,0.00859769,105630.0,105620.0,1.74919669]
[1749969445527,0.00859769,105630.0,105620.0,1.82484653]
[1749969449050,0.00859769,105630.0,105620.0,1.57804653]
[1749969449274,0.00859769,105630.0,105620.0,1.75558653]
[1749969449486,0.00859769,105630.0,105620.0,1.67993669]
[1749969449698,0.00859769,105630.0,105620.0,1.69743669]
[1749969450625,0.00859769,105630.0,105620.0,1.50079669]
[1749969450841,0.00859769,105630.0,105620.0,1.77308653]
[1749969451269,0.00859769,105630.0,105620.0,1.50079669]
[1749969451473,0.00859769,105630.0,105620.0,1.67993669]
[1749969451701,0.00859769,105630.0,105620.0,1.73676512]
[1749969452782,0.00859769,105630.0,105620.0,1.73676295]
[1749969459379,0.00859769,105630.0,105620.0,1.67993669]
[1749969459602,0.00859769,105630.0,105620.0,1.73675734]
[1749969462033,0.00859769,105630.0,105620.0,1.67993669]
[1749969464380,0.00859769,105630.0,105620.0,1.69783669]
[1749969465326,0.00859769,105630.0,105620.0,2.19097402]
[1749969467108,0.002,105630.0,105620.0,2.19097402]
[1749969472479,0.002,105630.0,105620.0,2.29071402]
[1749969472683,0.002,105630.0,105620.0,2.19097402]
[1749969474265,0.002,105630.0,105620.0,2.26662386]
[1749969474962,0.002,105630.0,105620.0,1.37871236]
[1749969475182,0.002,105630.0,105620.0,2.19097402]
[1749969475468,0.002,105630.0,105620.0,2.26662386]
[1749969481845,0.002,105630.0,105620.0,2.31662386]
[1749969482916,0.0371,105660.0,105640.0,0.19901308]
[1749969483138,0.0371,105660.0,105650.0,0.86046046]
[1749969483341,0.0371,105660.0,105650.0,0.8580946]
[1749969484248,0.0381,105660.0,105650.0,0.8865456]
[1749969484483,0.0431,105660.0,105650.0,0.89755086]
[1749969485404,0.0421,105660.0,105650.0,0.89755086]
[1749969485612,0.0451,105660.0,105650.0,0.99370008]
[1749969486149,0.0451,105660.0,105650.0,0.89755086]
[1749969488138,0.008,105660.0,105650.0,0.99379262]
[1749969489149,0.008,105660.0,105650.0,1.01155683]
[1749969489398,0.008,105660.0,105650.0,1.01155692]
[1749969489648,0.008,105660.0,105650.0,0.99379262]
[1749969489901,0.008,105660.0,105650.0,1.10770577]
[1749969490106,0.008,105660.0,105650.0,1.10770592]
[1749969490422,0.008,105660.0,105650.0,1.08994184]
[1749969490673,0.008,105660.0,105650.0,1.10770597]
[1749969490928,0.008,105660.0,105650.0,0.99379262]
[1749969491162,0.008,105660.0,105650.0,1.01155684]
[1749969491816,0.008,105660.0,105650.0,0.99379262]
[1749969492037,0.008,105660.0,105650.0,1.01155684]
[1749969492486,0.008,105660.0,105650.0,0.99379262]
[1749969492706,0.008,105660.0,105650.0,1.02207408]
[1749969492921,0.008,105660.0,105650.0,0.84858986]
[1749969493148,0.008,105660.0,105650.0,1.00430986]
[1749969493366,0.008,105660.0,105650.0,1.05431489]
[1749969493590,0.008,105660.0,105650.0,1.07231457]
[1749969493813,0.008,105660.0,105650.0,1.07231472]
[1749969494041,0.008,105660.0,105650.0,1.05455071]
[1749969494755,0.008,105660.0,105650.0,1.07231457]
[1749969495016,0.005,105660.0,105650.0,1.08191535]
[1749969495468,0.006,105660.0,105650.0,1.5258711]
[1749969495943,0.001,105660.0,105650.0,1.59945602]
[1749969496427,0.001,105660.0,105650.0,1.58169392]
[1749969496652,0.005,105660.0,105650.0,2.03096126]
[1749969496882,0.005,105660.0,105650.0,2.04872244]
[1749969497106,0.005,105660.0,105650.0,2.03096126]
[1749969497324,0.005,105660.0,105650.0,2.04872227]
[1749969497544,0.005,105660.0,105650.0,2.04872226]
[1749969497763,0.005,105660.0,105650.0,2.16848828]
[1749969497979,0.005,105660.0,105650.0,2.21848828]
[1749969498212,0.005,105660.0,105650.0,2.23624793]
[1749969498435,0.0189,105690.0,105680.0,0.23217791]
[1749969498686,0.0378,105690.0,105680.0,0.96873542]
[1749969498886,0.0378,105690.0,105680.0,0.98649527]
[1749969499121,0.0378,105690.0,105680.0,1.01493624]
[1749969499349,0.0378,105690.0,105680.0,1.01493628]
[1749969499611,0.0378,105690.0,105680.0,1.01493636]
[1749969499832,0.0378,105690.0,105680.0,1.11108542]
[1749969500017,0.0378,105690.0,105680.0,1.09332564]
[1749969500487,0.0428,105690.0,105680.0,1.09432564]
[1749969501608,0.0438,105690.0,105680.0,1.09432564]
[1749969506260,0.0438,105690.0,105680.0,0.89796564]
[1749969506381,0.0438,105690.0,105680.0,0.99813642]
[1749969508077,0.0249,105690.0,105680.0,0.99813642]
[1749969512832,0.0449,105690.0,105680.0,0.99813642]
[1749969515411,0.0449,105690.0,105680.0,0.99809642]
[1749969517863,0.026,105690.0,105680.0,0.99809642]
[1749969521212,0.026,105690.0,105680.0,0.24707806]
[1749969521437,0.0623,105690.0,105680.0,0.88723381]
[1749969527599,0.0445,105690.0,105680.0,0.88723381]
[1749969529659,0.0445,105690.0,105680.0,0.98338303]
[1749969530073,0.026,105690.0,105680.0,0.98338303]
[1749969530273,0.026,105690.0,105680.0,0.88723381]
[1749969531928,0.026,105690.0,105680.0,0.90623381]
[1749969535211,0.026,105690.0,105680.0,0.88723381]
[1749969536073,0.026,105690.0,105680.0,0.69103381]
[1749969536305,0.50585575,105690.0,105680.0,0.41483706]
[1749969547497,0.48745575,105690.0,105680.0,0.41483706]
[1749969553941,0.48745575,105690.0,105680.0,0.21863706]
[1749969554150,0.48745575,105690.0,105680.0,0.41475706]
[1749969559190,0.0435,105690.0,105680.0,0.41475706]
[1749969559389,0.48745575,105690.0,105680.0,0.41475706]
[1749969561515,0.0435,105690.0,105680.0,0.41475706]
[1749969561722,0.48745575,105690.0,105680.0,0.41475706]
[1749969565654,0.46995575,105690.0,105680.0,0.41475706]
[1749969566966,0.46995575,105690.0,105680.0,0.21863706]
[1749969567195,0.46995575,105690.0,105680.0,0.41471706]
[1749969573003,0.46995575,105690.0,105680.0,0.43071706]
[1749969574911,0.026,105690.0,105680.0,0.43071706]
[1749969575087,0.46995575,105690.0,105680.0,0.43071706]
[1749969575320,0.026,105690.0,105680.0,0.43071706]
[1749969575503,0.46995575,105690.0,105680.0,0.43071706]
[1749969578670,0.44995575,105690.0,105680.0,0.43071706]
[1749969583924,0.006,105690.0,105680.0,0.43071706]
[1749969585582,0.44995575,105690.0,105680.0,0.43071706]
[1749969590951,0.44995575,105690.0,105680.0,0.43067706]
[1749969591773,0.44995575,105690.0,105680.0,0.23459706]
[1749969591978,0.44995575,105690.0,105680.0,0.43051706]
[1749969600852,0.006,105690.0,105680.0,0.43051706]
[1749969601313,0.44995575,105690.0,105680.0,0.43051706]
[1749969611726,0.006,105690.0,105680.0,0.43051706]
[1749969611917,0.44995575,105690.0,105680.0,0.43051706]
[1749969614530,0.44995575,105690.0,105680.0,0.43039706]
[1749969614932,0.45941657,105690.0,105680.0,0.27507706]
[1749969615138,1.24853055,105690.0,105680.0,0.20917533]
[1749969615344,1.24853055,105690.0,105680.0,0.21863741]
[1749969615787,0.17073123,105690.0,105680.0,0.22809931]
[1749969615985,0.62480359,105690.0,105680.0,0.22809931]
[1749969616495,0.61534205,105690.0,105680.0,0.22809931]
[1749969616704,0.59974205,105690.0,105680.0,0.22809931]
[1749969617745,0.60854878,105690.0,105680.0,0.22809931]
[1749969617948,0.59974205,105690.0,105680.0,0.22809931]
[1749969618160,0.60854876,105690.0,105680.0,0.22809931]
[1749969618566,0.59974205,105690.0,105680.0,0.22809931]
[1749969619795,0.60920359,105690.0,105680.0,0.22809931]
[1749969620435,0.61801009,105690.0,105680.0,0.22809931]
[1749969620653,0.6434739,105690.0,105680.0,0.22809931]
[1749969620855,0.61801009,105690.0,105680.0,0.22809931]
[1749969621475,0.60920359,105690.0,105680.0,0.22809931]
[1749969622113,0.61801011,105690.0,105680.0,0.22809931]
[1749969622324,0.60920359,105690.0,105680.0,0.22809931]
[1749969622526,0.61801009,105690.0,105680.0,0.22809931]
[1749969622736,0.6180101,105690.0,105680.0,0.22809931]
[1749969623247,0.59974205,105690.0,105680.0,0.22809931]
[1749969623486,0.60854858,105690.0,105680.0,0.22809931]
[1749969623713,0.60854859,105690.0,105680.0,0.22809931]
[1749969624134,0.59974205,105690.0,105680.0,0.22809931]
[1749969624560,0.60854857,105690.0,105680.0,0.22809931]
[1749969624848,0.61801011,105690.0,105680.0,0.22809931]
[1749969625356,0.61801013,105690.0,105680.0,0.22809931]
[1749969625576,0.60920359,105690.0,105680.0,0.22809931]
[1749969625801,0.60854857,105690.0,105680.0,0.22809931]
[1749969625997,0.59974205,105690.0,105680.0,0.22809931]
[1749969626228,0.1557863,105690.0,105680.0,0.22809931]
[1749969626440,0.59974205,105690.0,105680.0,0.22809931]
[1749969627114,0.59974205,105690.0,105680.0,0.26857931]
[1749969629474,0.5902806,105690.0,105680.0,0.26857931]
[1749969629693,0.59974205,105690.0,105680.0,0.26857931]
[1749969630574,0.60854776,105690.0,105680.0,0.26857931]
[1749969630791,0.60854778,105690.0,105680.0,0.26857931]
[1749969631011,0.59974205,105690.0,105680.0,0.26857931]
[1749969632004,0.60854778,105690.0,105680.0,0.26857931]
[1749969632432,0.59974205,105690.0,105680.0,0.26857931]
[1749969632870,0.60854778,105690.0,105680.0,0.26857931]
[1749969633084,0.60854777,105690.0,105680.0,0.26857931]
[1749969633537,0.60854778,105690.0,105680.0,0.26857931]
[1749969633766,0.58962506,105690.0,105680.0,0.26857931]
[1749969633999,0.55565833,105690.0,105680.0,0.28487931]
[1749969635371,0.44995575,105690.0,105680.0,0.30264225]
[1749969635577,0.006,105690.0,105680.0,0.30037931]
[1749969635816,0.006,105690.0,105680.0,0.82244156]
[1749969636234,0.006,105690.0,105680.0,0.80467944]
[1749969636441,0.006,105690.0,105680.0,0.74433506]
[1749969636654,0.006,105690.0,105680.0,0.76209627]
[1749969637059,0.006,105690.0,105680.0,0.74433506]
[1749969637319,0.006,105690.0,105680.0,0.76209624]
[1749969637563,0.006,105690.0,105680.0,0.76209639]
[1749969637835,0.006,105690.0,105680.0,0.74433506]
[1749969638059,0.006,105690.0,105680.0,0.76209634]
[1749969638514,0.006,105690.0,105680.0,0.74433506]
[1749969638714,0.44995575,105690.0,105680.0,0.45796058]
[1749969638927,0.44995575,105690.0,105680.0,0.45796134]
[1749969639143,0.45941666,105690.0,105680.0,0.45796158]
[1749969639355,0.46887775,105690.0,105680.0,0.45796158]
[1749969639578,0.46887766,105690.0,105680.0,0.44019931]
[1749969639787,0.46887766,105690.0,105680.0,0.45796174]
[1749969639998,0.47833875,105690.0,105680.0,0.44019931]
[1749969640210,0.47833875,105690.0,105680.0,0.45796175]
[1749969640658,0.47833875,105690.0,105680.0,0.45793704]
[1749969641085,0.47833875,105690.0,105680.0,0.44019931]
[1749969641285,0.47833875,105690.0,105680.0,0.45793703]
[1749969641500,0.47833875,105690.0,105680.0,0.44019931]
[1749969641907,0.47833875,105690.0,105680.0,0.45793703]
[1749969642317,0.47833875,105690.0,105680.0,0.44019931]
[1749969642561,0.47833875,105690.0,105680.0,0.45793703]
[1749969642958,0.47833875,105690.0,105680.0,0.44019931]
[1749969643569,0.47833875,105690.0,105680.0,0.45793703]
[1749969644279,0.47833875,105690.0,105680.0,0.44019931]
[1749969644484,0.47833875,105690.0,105680.0,0.45793703]
[1749969644689,0.47833875,105690.0,105680.0,0.44019931]
[1749969644891,0.47833875,105690.0,105680.0,0.45793705]
[1749969645093,0.47833875,105690.0,105680.0,0.45793706]
[1749969646183,0.48780002,105690.0,105680.0,0.45793706]
[1749969646340,0.47833875,105690.0,105680.0,0.45793706]
[1749969646756,0.47833875,105690.0,105680.0,0.44019931]
[1749969646938,0.47833875,105690.0,105680.0,0.45793706]
[1749969647150,0.47833875,105690.0,105680.0,0.44019931]
[1749969647334,0.47833875,105690.0,105680.0,0.45793706]
[1749969647539,0.47833875,105690.0,105680.0,0.45793716]
[1749969647765,0.48780002,105690.0,105680.0,0.44019931]
[1749969648213,0.48780002,105690.0,105680.0,0.45793716]
[1749969648616,0.48780002,105690.0,105680.0,0.44019931]
[1749969648756,0.48780002,105690.0,105680.0,0.45793721]
[1749969649241,0.48780002,105690.0,105680.0,0.44019931]
[1749969649457,0.48780002,105690.0,105680.0,0.45793722]
[1749969649904,0.48780002,105690.0,105680.0,0.44019931]
[1749969650311,0.48780002,105690.0,105680.0,0.45793722]
[1749969650833,0.48780002,105690.0,105680.0,0.4579619]
[1749969651055,0.49726147,105690.0,105680.0,0.28487931]
[1749969651266,0.48780002,105690.0,105680.0,0.4579219]
[1749969651475,0.03438309,105690.0,105680.0,0.4731219]
[1749969651668,0.47833884,105690.0,105680.0,0.47312175]
[1749969652296,0.47833884,105690.0,105680.0,0.45535931]
[1749969652499,0.47833884,105690.0,105680.0,0.47312175]
[1749969653243,0.46887766,105690.0,105680.0,0.47312175]
[1749969653452,0.47833884,105690.0,105680.0,0.45535931]
[1749969653654,0.46887766,105690.0,105680.0,0.47312175]
[1749969654073,0.47833884,105690.0,105680.0,0.45792175]
[1749969654302,0.46887766,105690.0,105680.0,0.45792183]
[1749969654507,0.46887766,105690.0,105680.0,0.44015931]
[1749969655138,0.46887766,105690.0,105680.0,0.45792157]
[1749969655819,0.46887766,105690.0,105680.0,0.45792155]
[1749969656046,0.46887766,105690.0,105680.0,0.44015931]
[1749969656222,0.46887766,105690.0,105680.0,0.45792169]
[1749969656431,0.46887766,105690.0,105680.0,0.44015931]
[1749969656662,0.46887766,105690.0,105680.0,0.30264169]
[1749969656864,0.46887766,105690.0,105680.0,0.44015931]
[1749969657435,0.46887766,105690.0,105680.0,0.45792169]
[1749969657654,0.51260915,105690.0,105680.0,0.45792169]
[1749969657877,0.47833884,105690.0,105680.0,0.45792169]
[1749969658084,0.47833893,105690.0,105680.0,0.45792169]
[1749969658317,0.47833884,105690.0,105680.0,0.45792169]
[1749969658698,0.46887766,105690.0,105680.0,0.45792169]
[1749969658905,0.47833884,105690.0,105680.0,0.26216169]
[1749969659112,0.47833884,105690.0,105680.0,0.45792169]
[1749969659807,0.49726174,105690.0,105680.0,0.44162178]
[1749969660015,0.49726174,105690.0,105680.0,0.45108368]
[1749969660626,0.49726174,105690.0,105680.0,0.4333213]
[1749969661569,0.49726174,105690.0,105680.0,0.45108406]
[1749969661991,0.67703412,105690.0,105680.0,0.43216017]
[1749969662210,0.67703412,105690.0,105680.0,0.40493533]
[1749969662423,0.23307837,105690.0,105680.0,0.23640017]
[1749969662648,0.67703412,105690.0,105680.0,0.41439741]
[1749969662913,0.47833974,105690.0,105680.0,0.44162207]
[1749969663385,0.47833974,105690.0,105680.0,0.42385931]
[1749969663632,0.47833974,105690.0,105680.0,0.44162201]
[1749969663859,0.47833974,105690.0,105680.0,0.45822181]
[1749969664314,0.48780128,105690.0,105680.0,0.44045931]
[1749969664537,0.67703394,105690.0,105680.0,0.44875997]
[1749969664755,0.68649557,105690.0,105680.0,0.45822197]
[1749969664982,0.49726291,105690.0,105680.0,0.45822205]
[1749969665200,0.48780128,105690.0,105680.0,0.4499213]
[1749969665421,1.21430891,105690.0,105680.0,0.19025056]
[1749969665651,1.21430891,105690.0,105680.0,0.21747675]
[1749969665842,1.21430891,105690.0,105680.0,0.19971299]
[1749969666051,0.77035316,105690.0,105680.0,0.21747693]
[1749969666286,0.77035316,105690.0,105680.0,0.217477]
[1749969666287,0.7791591,105690.0,105680.0,0.217477]
[1749969666491,0.77915919,105690.0,105680.0,0.19971299]
[1749969666737,0.77035316,105690.0,105680.0,0.19971299]
[1749969666990,0.76089171,105690.0,105680.0,0.21744641]
[1749969667179,0.76089171,105690.0,105680.0,0.2174464]
[1749969667389,0.76089171,105690.0,105680.0,0.21744639]
[1749969667606,0.76089171,105690.0,105680.0,0.19971299]
[1749969668035,0.76089171,105690.0,105680.0,0.21744639]
[1749969668273,0.76089171,105690.0,105680.0,0.19971299]
[1749969668501,0.76089171,105690.0,105680.0,0.21744639]
[1749969669135,0.76089171,105690.0,105680.0,0.19971299]
[1749969669449,0.76089171,105690.0,105680.0,0.21744639]
[1749969669679,0.76089171,105690.0,105680.0,0.19971299]
[1749969669903,0.76089171,105690.0,105680.0,0.21744639]
[1749969670358,0.76969778,105690.0,105680.0,0.19971299]
[1749969670578,0.76969778,105690.0,105680.0,0.21747697]
[1749969670807,0.76089171,105690.0,105680.0,0.21747697]
[1749969671254,0.76969799,105690.0,105680.0,0.21747697]